fUST/lending_fUST_20250118
["ID","MTS","AMOUNT","RATE_DAILY","PERIOD"]
[349377166,1737143445574,-500.0,0.00022191,3]
[349377167,1737143445591,-538.68,0.00022191,3]
[349377170,1737143445606,-500.0,0.00022191,3]
[349377172,1737143445622,-500.0,0.00022191,3]
[349377175,1737143445637,-500.0,0.00022191,3]
[349377177,1737143445649,-500.0,0.00022191,3]
[349377180,1737143445662,-500.0,0.00022191,3]
[349377182,1737143445677,-500.0,0.00022191,3]
[349377185,1737143445692,-500.0,0.00022191,3]
[349377187,1737143445707,-500.0,0.00022191,3]
[349377190,1737143445722,-500.0,0.00022191,3]
[349377192,1737143445735,-603.28,0.00022191,3]
[349377195,1737143445751,-500.0,0.00022191,3]
[349377197,1737143445768,-500.0,0.00022191,3]
[349377200,1737143445782,-3788.44,0.00022191,3]
[349377202,1737143445797,-500.0,0.00022191,3]
[349377205,1737143445813,-500.0,0.00022191,3]
[349377207,1737143445826,-500.0,0.00022191,3]
[349377210,1737143445837,-500.0,0.00022191,3]
[349377212,1737143445849,-385.53107373,0.00022191,3]
[349377215,1737143445869,-114.46892627,0.00022191,3]
[349377217,1737143445880,-1229.46,0.00022191,3]
[349377220,1737143445892,-500.0,0.00022191,3]
[349377222,1737143445906,-500.0,0.00022191,3]
[349377224,1737143445919,-475.91955206,0.00022191,3]
[349377226,1737143445930,-500.0,0.00022191,3]
[349377229,1737143445943,-500.0,0.00022191,3]
[349377231,1737143445956,-500.0,0.00022191,3]
[349377233,1737143445969,-500.0,0.00022191,3]
[349377236,1737143445981,-500.0,0.00022191,3]
[349377238,1737143445994,-500.0,0.00022191,3]
[349377240,1737143446005,-500.0,0.00022191,3]
[349377243,1737143446018,-733.33,0.00022191,3]
[349377245,1737143446030,-2681.49,0.00022191,3]
[349377247,1737143446043,-500.0,0.00022191,3]
[349377250,1737143446055,-500.0,0.00022191,3]
[349377252,1737143446067,-500.0,0.00022191,3]
[349377254,1737143446079,-500.0,0.00022191,3]
[349377257,1737143446092,-500.0,0.00022191,3]
[349377259,1737143446104,-157.95148783,0.00022191,3]
[349377261,1737143446117,-1832.08,0.00022191,3]
[349377263,1737143446129,-500.0,0.00022191,3]
[349377266,1737143446143,-500.0,0.00022191,3]
[349377268,1737143446155,-500.0,0.00022191,3]
[349377270,1737143446166,-500.0,0.00022191,3]
[349377272,1737143446175,-181.0,0.00022192,2]
[349377274,1737143446184,-1617.44107335,0.00022245,3]
[349377276,1737143446194,-182.296168,0.000223,2]
[349377279,1737143446203,-1617.44107335,0.00022314,3]
[349377281,1737143446212,-390.1802727,0.00022328,3]
[349377283,1737143446222,-533.67,0.00022328,3]
[349377285,1737143446235,-247.62206604,0.00022328,3]
[349377287,1737143446251,-253.58793396,0.00022328,3]
[349377289,1737143446262,-607.6,0.00022328,3]
[349377291,1737143446271,-216.71203107,0.00022328,3]
[349377332,1737143446646,-563.48,0.00021917,3]
[349377334,1737143446655,-256.06220736,0.00022054,3]
[349377336,1737143446667,-307.41779264,0.00022054,3]
[349377338,1737143446676,-563.48,0.00022191,3]
[349377340,1737143446686,-283.28796893,0.00022328,3]
[349377342,1737143446696,-500.0,0.00022328,3]
[349377344,1737143446706,-503.51754126,0.00022328,3]
[349377346,1737143446715,-534.23778696,0.00022328,3]
[349377348,1737143446725,-463.7603451,0.00022328,3]
[349377350,1737143446735,-500.0,0.00022328,3]
[349377352,1737143446745,-500.0,0.00022328,3]
[349377354,1737143446754,-500.0,0.00022328,3]
[349377356,1737143446764,-567.0,0.00022328,3]
[349377358,1737143446773,-500.0,0.00022328,3]
[349377360,1737143446783,-500.0,0.00022328,3]
[349377362,1737143446793,-500.0,0.00022328,3]
[349377364,1737143446802,-500.0,0.00022328,3]
[349377366,1737143446812,-500.0,0.00022328,3]
[349377368,1737143446821,-500.0,0.00022328,3]
[349377370,1737143446831,-500.0,0.00022328,3]
[349377372,1737143446840,-500.0,0.00022328,3]
[349377374,1737143446850,-500.0,0.00022328,3]
[349377376,1737143446860,-500.0,0.00022328,3]
[349377378,1737143446870,-500.0,0.00022328,3]
[349377380,1737143446880,-500.0,0.00022328,3]
[349377382,1737143446890,-500.0,0.00022328,3]
[349377384,1737143446899,-500.0,0.00022328,3]
[349377386,1737143446909,-716.47,0.00022328,2]
[349377388,1737143446918,-500.0,0.00022328,3]
[349377391,1737143446929,-500.0,0.00022328,3]
[349377393,1737143446938,-533.46329053,0.00022328,3]
[349377395,1737143446949,-500.0,0.00022328,2]
[349377397,1737143446958,-9629.4,0.00022328,3]
[349377398,1737143446967,-500.0,0.00022328,3]
[349377401,1737143446977,-500.0,0.00022328,3]
[349377403,1737143446987,-500.0,0.00022328,3]
[349377404,1737143446996,-500.0,0.00022328,3]
[349377406,1737143447005,-933.09,0.00022328,3]
[349377408,1737143447015,-2390.58,0.00022328,3]
[349377411,1737143447025,-566.76,0.00022328,3]
[349377413,1737143447034,-2554.42,0.00022328,3]
[349377415,1737143447043,-1427.82,0.00022328,3]
[349377417,1737143447052,-500.0,0.00022328,3]
[349377418,1737143447061,-242.58,0.00022328,3]
[349377421,1737143447071,-500.0,0.00022328,3]
[349377423,1737143447080,-1240.11,0.00022328,3]
[349377425,1737143447090,-500.0,0.00022328,3]
[349377427,1737143447099,-500.0,0.00022328,3]
[349377429,1737143447108,-699.12,0.00022328,3]
[349377431,1737143447118,-500.0,0.00022328,3]
[349377433,1737143447127,-500.0,0.00022328,3]
[349377434,1737143447136,-500.0,0.00022328,3]
[349377436,1737143447145,-938.1482764,0.00022328,3]
[349377439,1737143447158,-236.3817236,0.00022328,3]
[349377441,1737143447167,-1501.43,0.00022328,3]
[349377443,1737143447177,-2870.38678152,0.00022328,3]
[349377445,1737143447188,-1281.878382,0.00022328,3]
[349377447,1737143447199,-9259.07483648,0.00022328,3]
[349377449,1737143447209,-1238.19,0.00022328,3]
[349377451,1737143447218,-841.85,0.00022328,3]
[349377453,1737143447227,-538.68,0.00022328,3]
[349377455,1737143447237,-500.0,0.00022328,3]
[349377457,1737143447246,-500.0,0.00022328,3]
[349377459,1737143447256,-500.0,0.00022328,3]
[349377461,1737143447265,-500.0,0.00022328,3]
[349377463,1737143447274,-500.0,0.00022328,3]
[349377465,1737143447283,-500.0,0.00022328,3]
[349377467,1737143447293,-603.28,0.00022328,3]
[349377469,1737143447302,-3788.44,0.00022328,3]
[349377471,1737143447315,-500.0,0.00022328,3]
[349377473,1737143447325,-1229.46,0.00022328,3]
[349377475,1737143447335,-500.0,0.00022328,3]
[349377477,1737143447344,-179.10533293,0.00022328,3]
[349377479,1737143447353,-500.0,0.00022328,3]
[349377481,1737143447363,-500.0,0.00022328,3]
[349377483,1737143447372,-733.33,0.00022328,3]
[349377485,1737143447381,-2681.49,0.00022328,3]
[349377487,1737143447391,-500.0,0.00022328,3]
[349377489,1737143447401,-500.0,0.00022328,3]
[349377491,1737143447410,-1832.08,0.00022328,3]
[349377493,1737143447420,-500.0,0.00022328,3]
[349377495,1737143447430,-500.0,0.00022328,3]
[349377497,1737143447439,-563.48,0.00022328,3]
[349377500,1737143447449,-1617.44107335,0.00022383,3]
[349377501,1737143447458,-152.0,0.00022398,2]
[349377503,1737143447468,-152.0,0.00022398,2]
[349377506,1737143447478,-152.0,0.00022398,2]
[349377508,1737143447487,-152.0,0.00022398,2]
[349377509,1737143447498,-152.0,0.00022398,2]
[349377512,1737143447508,-204.53,0.00022398,2]
[349377514,1737143447517,-153.0,0.00022399,2]
[349377515,1737143447527,-152.0,0.00022399,2]
[349377516,1737143447537,-152.0,0.00022399,2]
[349377517,1737143447547,-152.0,0.00022399,2]
[349377518,1737143447557,-152.0,0.00022399,2]
[349377519,1737143447567,-152.0,0.00022399,2]
[349377520,1737143447576,-152.0,0.00022399,2]
[349377521,1737143447586,-152.0,0.00022399,2]
[349377522,1737143447596,-152.0,0.00022399,2]
[349377523,1737143447606,-152.0,0.00022399,2]
[349377524,1737143447616,-152.0,0.00022399,2]
[349377525,1737143447626,-152.0,0.00022399,2]
[349377527,1737143447635,-152.0,0.00022399,2]
[349377529,1737143447645,-152.0,0.00022399,2]
[349377531,1737143447655,-152.0,0.00022399,2]
[349377533,1737143447665,-152.0,0.00022399,2]
[349377535,1737143447675,-152.0,0.00022399,2]
[349377537,1737143447685,-263.0,0.00022399,2]
[349377540,1737143447695,-1617.44107335,0.00022452,3]
[349377541,1737143447705,-607.6,0.00022465,3]
[349377543,1737143447714,-500.0,0.00022465,3]
[349377545,1737143447724,-500.0,0.00022465,3]
[349377548,1737143447734,-500.0,0.00022465,3]
[349377550,1737143447744,-500.0,0.00022465,3]
[349377552,1737143447753,-321.95,0.00022465,3]
[349377554,1737143447762,-500.0,0.00022465,3]
[349377556,1737143447772,-500.0,0.00022465,3]
[349377558,1737143447783,-500.0,0.00022465,3]
[349377560,1737143447793,-500.0,0.00022465,3]
[349377562,1737143447802,-716.47,0.00022465,2]
[349377564,1737143447812,-501.79717016,0.00022465,2]
[349377566,1737143447822,-9629.4,0.00022465,3]
[349377568,1737143447831,-365.92005179,0.00022465,3]
[349377570,1737143447841,-500.0,0.00022465,3]
[349377572,1737143447850,-500.0,0.00022465,3]
[349377574,1737143447861,-607.56,0.00022465,3]
[349377576,1737143447870,-933.09,0.00022465,3]
[349377578,1737143447880,-2390.58,0.00022465,3]
[349377580,1737143447889,-566.76,0.00022465,3]
[349377582,1737143447899,-2554.42,0.00022465,3]
[349377584,1737143447908,-1427.82,0.00022465,3]
[349377586,1737143447917,-500.0,0.00022465,3]
[349377588,1737143447927,-500.0,0.00022465,3]
[349377590,1737143447937,-1240.11,0.00022465,3]
[349377592,1737143447946,-500.0,0.00022465,3]
[349377594,1737143447955,-500.0,0.00022465,3]
[349377596,1737143447965,-699.12,0.00022465,3]
[349377598,1737143447974,-500.0,0.00022465,3]
[349377600,1737143447984,-500.0,0.00022465,3]
[349377602,1737143447993,-500.0,0.00022465,3]
[349377604,1737143448003,-1174.53,0.00022465,3]
[349377606,1737143448012,-1501.43,0.00022465,3]
[349377608,1737143448021,-13411.34,0.00022465,3]
[349377610,1737143448032,-1238.19,0.00022465,3]
[349377612,1737143448041,-84.24195503,0.00022465,3]
[349377617,1737143448073,-757.60804497,0.00022465,3]
[349377619,1737143448083,-538.68,0.00022465,3]
[349377620,1737143448092,-507.50702301,0.00022465,3]
[349377622,1737143448102,-500.0,0.00022465,3]
[349377624,1737143448112,-500.0,0.00022465,3]
[349377626,1737143448121,-500.0,0.00022465,3]
[349377629,1737143448131,-603.28,0.00022465,3]
[349377631,1737143448142,-3788.44,0.00022465,3]
[349377633,1737143448152,-500.0,0.00022465,3]
[349377635,1737143448162,-1229.46,0.00022465,3]
[349377637,1737143448172,-465.70816901,0.00022465,3]
[349377639,1737143448183,-34.29183099,0.00022465,3]
[349377641,1737143448193,-500.0,0.00022465,3]
[349377643,1737143448202,-733.33,0.00022465,3]
[349377645,1737143448211,-2681.49,0.00022465,3]
[349377647,1737143448220,-500.0,0.00022465,3]
[349377649,1737143448230,-500.0,0.00022465,3]
[349377651,1737143448239,-1832.08,0.00022465,3]
[349377653,1737143448248,-500.0,0.00022465,3]
[349377655,1737143448257,-500.0,0.00022465,3]
[349377657,1737143448266,-563.48,0.00022465,3]
[349377659,1737143448276,-20063.1076432,0.000225,2]
[349377661,1737143448285,-1000.0,0.00022521,2]
[349377663,1737143448294,-500.0,0.00022521,2]
[349377665,1737143448304,-1617.44107335,0.00022521,3]
[349377667,1737143448318,-535.0,0.00022527,2]
[349377669,1737143448327,-2067.0,0.00022527,2]
[349377671,1737143448336,-1617.44107335,0.0002259,3]
[349377673,1737143448345,-607.6,0.00022602,3]
[349377675,1737143448354,-500.0,0.00022602,3]
[349377677,1737143448364,-500.0,0.00022602,3]
[349377679,1737143448373,-500.0,0.00022602,3]
[349377681,1737143448383,-500.0,0.00022602,3]
[349377683,1737143448393,-500.0,0.00022602,3]
[349377685,1737143448404,-500.0,0.00022602,3]
[349377687,1737143448414,-500.0,0.00022602,3]
[349377689,1737143448423,-716.47,0.00022602,2]
[349377691,1737143448432,-9629.4,0.00022602,3]
[349377693,1737143448442,-500.0,0.00022602,3]
[349377695,1737143448451,-500.0,0.00022602,3]
[349377697,1737143448461,-150.47916148,0.00022602,3]
[349377703,1737143448503,-782.61083852,0.00022602,3]
[349377705,1737143448513,-2390.58,0.00022602,3]
[349377707,1737143448522,-566.76,0.00022602,3]
[349377709,1737143448532,-2554.42,0.00022602,3]
[349377711,1737143448542,-1427.82,0.00022602,3]
[349377713,1737143448551,-500.0,0.00022602,3]
[349377715,1737143448560,-500.0,0.00022602,3]
[349377717,1737143448569,-1240.11,0.00022602,3]
[349377719,1737143448579,-500.0,0.00022602,3]
[349377721,1737143448588,-500.0,0.00022602,3]
[349377723,1737143448597,-699.12,0.00022602,3]
[349377725,1737143448606,-500.0,0.00022602,3]
[349377727,1737143448615,-500.0,0.00022602,3]
[349377729,1737143448624,-1174.53,0.00022602,3]
[349377731,1737143448635,-1501.43,0.00022602,3]
[349377733,1737143448644,-13411.34,0.00022602,3]
[349377735,1737143448653,-1238.19,0.00022602,3]
[349377737,1737143448663,-841.85,0.00022602,3]
[349377739,1737143448672,-538.68,0.00022602,3]
[349377741,1737143448681,-500.0,0.00022602,3]
[349377743,1737143448691,-500.0,0.00022602,3]
[349377745,1737143448700,-500.0,0.00022602,3]
[349377747,1737143448710,-603.28,0.00022602,3]
[349377749,1737143448719,-648.32353853,0.00022602,3]
[349377751,1737143448731,-3140.11646147,0.00022602,3]
[349377753,1737143448740,-1229.46,0.00022602,3]
[349377755,1737143448750,-279.98773557,0.00022602,3]
[349377758,1737143448759,-500.0,0.00022602,3]
[349377760,1737143448769,-733.33,0.00022602,3]
[349377762,1737143448778,-2681.49,0.00022602,3]
[349377764,1737143448787,-500.0,0.00022602,3]
[349377765,1737143448797,-500.0,0.00022602,3]
[349377767,1737143448806,-1832.08,0.00022602,3]
[349377769,1737143448815,-485.68775112,0.00022602,3]
[349377771,1737143448825,-563.48,0.00022602,3]
[349377773,1737143448834,-150.472,0.00022615,2]
[349377775,1737143448844,-151.56860726,0.00022621,2]
[349377777,1737143448853,-1617.44107335,0.00022659,3]
[349377779,1737143448863,-500.0,0.000227,2]
[349377782,1737143448873,-1000.0,0.00022721,2]
[349377784,1737143448882,-1000.0,0.00022721,2]
[349377785,1737143448891,-500.82791859,0.00022721,2]
[349377787,1737143448901,-1000.0,0.00022721,2]
[349377789,1737143448911,-1000.0,0.00022721,2]
[349377791,1737143448921,-1000.0,0.00022721,2]
[349377793,1737143448930,-1617.44107335,0.00022728,3]
[349377795,1737143448940,-172.41779844,0.00022734,2]
[349377797,1737143448950,-607.6,0.00022739,3]
[349377799,1737143448960,-500.0,0.00022739,3]
[349377801,1737143448970,-196.38359603,0.00022739,3]
[349377803,1737143448980,-500.0,0.00022739,3]
[349377805,1737143448989,-500.0,0.00022739,3]
[349377807,1737143448999,-500.0,0.00022739,3]
[349377809,1737143449009,-162.66,0.00022739,3]
[349377812,1737143449019,-500.0,0.00022739,3]
[349377814,1737143449028,-61.08329865,0.00022739,2]
[349377816,1737143449040,-500.0,0.00022739,2]
[349377818,1737143449052,-155.38670135,0.00022739,2]
[349377820,1737143449062,-9629.4,0.00022739,3]
[349377822,1737143449072,-297.14,0.00022739,3]
[349377824,1737143449082,-500.0,0.00022739,3]
[349377826,1737143449092,-933.09,0.00022739,3]
[349377828,1737143449102,-2390.58,0.00022739,3]
[349377830,1737143449111,-566.76,0.00022739,3]
[349377832,1737143449121,-2554.42,0.00022739,3]
[349377834,1737143449131,-1427.82,0.00022739,3]
[349377836,1737143449140,-500.0,0.00022739,3]
[349377838,1737143449149,-505.80843066,0.00022739,3]
[349377840,1737143449159,-1240.11,0.00022739,3]
[349377842,1737143449168,-316.08795581,0.00022739,3]
[349377844,1737143449178,-699.12,0.00022739,3]
[349377846,1737143449187,-500.0,0.00022739,3]
[349377848,1737143449196,-500.0,0.00022739,3]
[349377850,1737143449206,-1174.53,0.00022739,3]
[349377852,1737143449215,-1501.43,0.00022739,3]
[349377854,1737143449225,-13411.34,0.00022739,3]
[349377856,1737143449234,-1238.19,0.00022739,3]
[349377858,1737143449243,-841.85,0.00022739,3]
[349377860,1737143449252,-538.68,0.00022739,3]
[349377862,1737143449262,-500.0,0.00022739,3]
[349377864,1737143449271,-500.0,0.00022739,3]
[349377866,1737143449281,-603.28,0.00022739,3]
[349377868,1737143449291,-3788.44,0.00022739,3]
[349377870,1737143449301,-1229.46,0.00022739,3]
[349377872,1737143449313,-500.0,0.00022739,3]
[349377874,1737143449324,-733.33,0.00022739,3]
[349377876,1737143449333,-2681.49,0.00022739,3]
[349377878,1737143449343,-500.0,0.00022739,3]
[349377880,1737143449353,-500.0,0.00022739,3]
[349377882,1737143449363,-1832.08,0.00022739,3]
[349377884,1737143449373,-563.48,0.00022739,3]
[349377886,1737143449384,-1617.44107335,0.00022797,3]
[349377887,1737143449393,-500.0,0.00022855,2]
[349377888,1737143449403,-1617.44107335,0.00022866,3]
[349377889,1737143449412,-607.6,0.00022876,3]
[349377890,1737143449421,-500.0,0.00022876,3]
[349377891,1737143449430,-500.0,0.00022876,3]
[349377892,1737143449439,-260.26,0.00022876,3]
[349377893,1737143449448,-500.0,0.00022876,3]
[349377894,1737143449458,-266.54251737,0.00022876,3]
[349377895,1737143449467,-716.47,0.00022876,2]
[349377896,1737143449477,-9629.4,0.00022876,3]
[349377897,1737143449486,-500.0,0.00022876,3]
[349377898,1737143449497,-933.09,0.00022876,3]
[349377900,1737143449506,-2390.58,0.00022876,3]
[349377902,1737143449516,-566.76,0.00022876,3]
[349377904,1737143449525,-2554.42,0.00022876,3]
[349377906,1737143449535,-1427.82,0.00022876,3]
[349377908,1737143449544,-500.0,0.00022876,3]
[349377910,1737143449553,-1240.11,0.00022876,3]
[349377912,1737143449563,-699.12,0.00022876,3]
[349377914,1737143449572,-500.0,0.00022876,3]
[349377916,1737143449581,-500.0,0.00022876,3]
[349377918,1737143449591,-1174.53,0.00022876,3]
[349377930,1737143449685,-1501.43,0.00022876,3]
[349377933,1737143449707,-13411.34,0.00022876,3]
[349377935,1737143449717,-1238.19,0.00022876,3]
[349377937,1737143449727,-841.85,0.00022876,3]
[349377939,1737143449736,-538.68,0.00022876,3]
[349377941,1737143449746,-500.0,0.00022876,3]
[349377943,1737143449755,-500.0,0.00022876,3]
[349377945,1737143449766,-603.28,0.00022876,3]
[349377947,1737143449775,-1358.27120151,0.00022876,3]
[349377949,1737143449788,-522.71335606,0.00022876,3]
[349377952,1737143449800,-1907.45544243,0.00022876,3]
[349377954,1737143449811,-1229.46,0.00022876,3]
[349377956,1737143449820,-500.0,0.00022876,3]
[349377958,1737143449830,-539.29438857,0.00022876,3]
[349377960,1737143449845,-194.03561143,0.00022876,3]
[349377962,1737143449854,-75.62336051,0.00022876,3]
[349377965,1737143449866,-2605.86663949,0.00022876,3]
[349377967,1737143449875,-500.0,0.00022876,3]
[349377969,1737143449885,-500.0,0.00022876,3]
[349377971,1737143449895,-1832.08,0.00022876,3]
[349377973,1737143449904,-563.48,0.00022876,3]
[349377975,1737143449914,-500.000001,0.0002288,2]
[349377977,1737143449923,-4399.89,0.000229,14]
[349377979,1737143449932,-619.66374277,0.000229,14]
[349377983,1737143449968,-500.0,0.00021917,3]
[349377985,1737143449977,-1515.70625723,0.000229,14]
[349377987,1737143449987,-151.0,0.000229,8]
[349377989,1737143449996,-291.88547328,0.000229,2]
[349377991,1737143450006,-2203.45847959,0.000229,2]
[349377993,1737143450015,-1617.44107335,0.00022934,3]
[349377995,1737143450024,-291.88547328,0.00022983,2]
[349377997,1737143450033,-1535.41040517,0.00023,2]
[349381632,1737143494409,158.097181,0.0002411,120]
[349381633,1737144288290,162.563342,0.00013973,2]
[349381639,1737144512930,158.097181,0.0002411,120]
[349382017,1737144635522,-1364.4100908,0.00021098,2]
[349382020,1737144635533,-1304.0,0.00021465,2]
[349382022,1737144635543,-164.37855109,0.00021817,2]
[349382024,1737144635553,-339.96,0.0002185,2]
[349382026,1737144635564,-500.0,0.00021916,7]
[349382028,1737144635574,-300.0,0.00021916,2]
[349382030,1737144635584,-493.02807866,0.00021917,3]
[349382032,1737144635595,-204.92962116,0.00021917,3]
[349382033,1737144635605,-500.0,0.00021917,3]
[349382035,1737144635615,-500.0,0.00021917,3]
[349382037,1737144635626,-502.46000505,0.00021917,3]
[349382039,1737144635637,-500.15150963,0.00021917,3]
[349382041,1737144635646,-501.71848323,0.00021917,2]
[349382043,1737144635658,-188.0,0.00021917,2]
[349382045,1737144635669,-500.0,0.00021917,3]
[349382047,1737144635679,-500.0,0.00021917,3]
[349382049,1737144635689,-500.0,0.00021917,3]
[349382051,1737144635704,-500.0,0.00021917,3]
[349382053,1737144635713,-500.0,0.00021917,3]
[349382056,1737144635723,-563.14701524,0.00021917,3]
[349382057,1737144635733,-500.0,0.00021917,3]
[349382059,1737144635742,-500.0,0.00021917,3]
[349382061,1737144635752,-500.0,0.00021917,3]
[349382063,1737144635761,-171.75151504,0.00021917,2]
[349382076,1737144635891,-28.21748496,0.00021917,2]
[349382078,1737144635902,-500.0,0.00021917,3]
[349382080,1737144635914,-500.0,0.00021917,3]
[349382082,1737144635924,-1000.0,0.00021917,3]
[349382084,1737144635934,-500.0,0.00021917,3]
[349382087,1737144635944,-500.0,0.00021917,3]
[349382088,1737144635953,-500.0,0.00021917,3]
[349382091,1737144635963,-500.0,0.00021917,3]
[349382092,1737144635973,-411.30220088,0.00021917,3]
[349382094,1737144635983,-500.0,0.00021917,3]
[349382096,1737144635993,-500.0,0.00021917,3]
[349382098,1737144636002,-500.0,0.00021917,3]
[349382100,1737144636011,-508.55127271,0.00021917,2]
[349382102,1737144636020,-500.0,0.00021917,3]
[349382104,1737144636029,-235.67140899,0.00021917,3]
[349382106,1737144636039,-548.88594039,0.00021917,3]
[349382108,1737144636048,-500.0,0.00021917,3]
[349382110,1737144636058,-500.0,0.00021917,3]
[349382111,1737144636067,-500.0,0.00021917,3]
[349382113,1737144636077,-508.36563686,0.00021917,3]
[349382115,1737144636086,-500.0,0.00021917,3]
[349382116,1737144636095,-505.81128292,0.00021917,2]
[349382118,1737144636105,-500.0,0.00021917,3]
[349382120,1737144636114,-500.0,0.00021917,3]
[349382121,1737144636124,-500.0,0.00021917,3]
[349382123,1737144636133,-500.0,0.00021917,3]
[349382125,1737144636143,-500.0,0.00021917,3]
[349382127,1737144636152,-500.0,0.00021917,3]
[349382128,1737144636162,-500.0,0.00021917,3]
[349382130,1737144636171,-291.63048734,0.00021917,3]
[349382132,1737144636181,-500.0,0.00021917,3]
[349382133,1737144636191,-500.0,0.00021917,3]
[349382136,1737144636211,-500.0,0.00021917,3]
[349382138,1737144636221,-500.0,0.00021917,3]
[349382139,1737144636231,-500.0,0.00021917,3]
[349382141,1737144636241,-500.0,0.00021917,3]
[349382143,1737144636250,-500.0,0.00021917,3]
[349382145,1737144636259,-500.0,0.00021917,3]
[349382146,1737144636268,-500.0,0.00021917,3]
[349382148,1737144636278,-500.0,0.00021917,3]
[349382150,1737144636287,-500.0,0.00021917,3]
[349382152,1737144636297,-500.0,0.00021917,3]
[349382154,1737144636306,-500.0,0.00021917,3]
[349382155,1737144636315,-500.0,0.00021917,3]
[349382157,1737144636324,-553.91,0.00021917,3]
[349382159,1737144636334,-500.0,0.00021917,3]
[349382161,1737144636343,-500.0,0.00021917,3]
[349382162,1737144636352,-500.0,0.00021917,3]
[349382164,1737144636362,-500.0,0.00021917,3]
[349382166,1737144636372,-500.0,0.00021917,3]
[349382168,1737144636381,-500.0,0.00021917,3]
[349382169,1737144636391,-500.0,0.00021917,3]
[349382171,1737144636400,-500.0,0.00021917,3]
[349382173,1737144636409,-500.0,0.00021917,3]
[349382174,1737144636419,-500.0,0.00021917,3]
[349382176,1737144636428,-500.0,0.00021917,3]
[349382178,1737144636437,-500.0,0.00021917,3]
[349382180,1737144636446,-500.0,0.00021917,3]
[349382181,1737144636456,-500.0,0.00021917,3]
[349382183,1737144636465,-500.0,0.00021917,3]
[349382185,1737144636475,-500.0,0.00021917,3]
[349382187,1737144636484,-500.0,0.00021917,3]
[349382188,1737144636494,-500.0,0.00021917,3]
[349382190,1737144636503,-500.0,0.00021917,3]
[349382192,1737144636513,-500.0,0.00021917,3]
[349382194,1737144636522,-500.0,0.00021917,3]
[349382196,1737144636531,-500.0,0.00021917,3]
[349382197,1737144636542,-500.0,0.00021917,3]
[349382199,1737144636551,-500.0,0.00021917,3]
[349382201,1737144636560,-540.11,0.00021917,3]
[349382202,1737144636570,-500.0,0.00021917,3]
[349382204,1737144636579,-500.0,0.00021917,3]
[349382206,1737144636588,-500.0,0.00021917,3]
[349382208,1737144636598,-500.0,0.00021917,3]
[349382210,1737144636609,-500.0,0.00021917,3]
[349382212,1737144636619,-500.0,0.00021917,3]
[349382214,1737144636629,-500.0,0.00021917,3]
[349382215,1737144636638,-500.0,0.00021917,3]
[349382217,1737144636647,-500.0,0.00021917,3]
[349382219,1737144636656,-444.14646199,0.00021917,3]
[349382221,1737144636667,-561.0629366,0.00021917,3]
[349382223,1737144636678,-500.0,0.00021917,3]
[349382224,1737144636687,-500.0,0.00021917,3]
[349382226,1737144636701,-500.0,0.00021917,3]
[349382228,1737144636710,-500.0,0.00021917,3]
[349382230,1737144636720,-500.0,0.00021917,3]